Workbook

Sheet Accounting
C5: Name of the Item | D5: Initial Capital Cost | E5: Depreciation Period | F5: Depreciation per Year | G5: Operating Hours Per Year | H5: Charge Rate Per Hour | J5: Job Type | K5: Rate per Month | M5: Materials | N5: Cost
C6: Laser | D6: 10000 | E6: 3 | G6: 300 | H6: 11.1111111111111 | J6: Truck Driver | K6: 5000 | M6: Nintendo | N6: 10000
C7: Truck | D7: 100000 | E7: 20 | F7: 5000 | G7: 100 | H7: 50 | J7: Machinist | K7: 2000 | M7: Brickhouse | N7: 1000
C8: Beryllium Melter | D8: 10000 | E8: 10 | F8: 1000 | G8: 100 | H8: 10 | J8: Technician | K8: 1000 | M8: Wii | N8: 1000
A9: Number of Years to Develop: | C9: Proton Smasher | D9: 40000 | E9: 10 | F9: 4000 | G9: 700 | H9: 5.71428571428571 | J9: Engineer | K9: 5000 | M9: Gold | N9: 10
A10: 4 | C10: Processor | D10: 50000 | E10: 10 | F10: 5000 | G10: 500 | H10: 10 | J10: Technologist | K10: 1000
C11: Minesweeper | D11: 50000 | E11: 20 | F11: 2500 | G11: 2000 | H11: 1.25 | J11: Accountant | K11: 10000
C12: Gun | D12: 1000 | E12: 10 | F12: 100 | G12: 1000 | H12: 0.1000000015 | J12: Manager | K12: 5000
C13: Dance Floor | D13: 10000 | E13: 10 | F13: 1000 | G13: 1000 | H13: 1 | J13: Courier | K13: 1000
C14: Big Truck | D14: 10000 | E14: 10 | F14: 1000 | G14: 100 | H14: 10 | J14: Laser Technician | K14: 1000
A15: Years for Forecast:
A16: 2
A18: Discount Rate:
A19: 0.2
A21: Manufacturing Overhead Rate:
A22: 0.3

Sheet BV-1231
A1: Project: | B1: BV-1231
A2: Description: | B2: lkjkj
A3: Date of Project: | B3: kjjk
A5: Assumptions:
A6: G&A and O/H Rate | C6: =Accounting!A22 -> 0.3
A7: Discount Rate | C7: =Accounting!A19 -> 0.2
A11: Development Cost
C12: Year 0 | E12: Year 1
A13: Labor Costs | B13: Monthly Wage Rate | C13: Man Months | D13: Amount | E13: Man Months | F13: Amount
A14: Technician | B14: 1000 | C14: 10 | D14: 10000 | E14: 10 | F14: 10000
A17: Capital Inputs | B17: Hourly Rate | C17: Hours per Year | D17: Amount | E17: Hours per Year | F17: Amount
A18: Laser | B18: 11.11111111
A19: Truck | B19: 50 | C19: 10 | D19: 500 | E19: 10 | F19: 500
A20: Beryllium Melter | B20: 10 | C20: 10 | D20: 100 | E20: 10 | F20: 100
A21: Proton Smasher | B21: 5.714285714 | C21: 10 | D21: 57.143 | E21: 10 | F21: 57.143
A22: Processor | B22: 10 | C22: 10 | D22: 100 | E22: 10 | F22: 100
A24: Total: | D24: 10757 | F24: 10757
A27: Revenue and Profit Forecast
B28: Year 1
A29: New Sales - Units | B29: 1
A30: New Sales - Unit Price | B30: 1
A31: New Sales Revenue | B31: =B29*B30 -> 1
A32: Cannibalized Sales - Units | B32: 1
A33: Cannibalized Sales - Unit Price | B33: 1
A34: Cannibalized Sales Amount | B34: =B32*B33 -> 1
A35: Unit Cost - Material & Labor | B35: 1
A36: G&A - Overhead | B36: =B35*Accounting!$A$22 -> 0.3
A37: Cost per Unit | B37: =B36+B35 -> 1.3
A38: Gross Profit | B38: =B31-B34-B29*B37 -> -1.3
A40: Net Present Value at 20% Discount Rate: | D40: -16435.20833
A41: Internal Rate of Return | D41: 0.16

Sheet KJ-1212
A1: Project: | B1: KJ-1212
A2: Description: | B2: ki
A3: Date of Project: | B3: lk
A5: Assumptions:
A6: G&A and O/H Rate | C6: =Accounting!A22 -> 0.3
A7: Discount Rate | C7: =Accounting!A19 -> 0.2
A11: Development Cost
C12: Year 0 | E12: Year 1 | G12: Year 2 | I12: Year 3
A13: Labor Costs | B13: Monthly Wage Rate | C13: Man Months | D13: Amount | E13: Man Months | F13: Amount | G13: Man Months | H13: Amount | I13: Man Months | J13: Amount
A14: Machinist | B14: 2000 | C14: 10 | D14: 20000 | E14: 10 | F14: 20000 | G14: 10 | H14: 20000 | I14: 10 | J14: 20000
A15: Accountant | B15: 10000 | C15: 10 | D15: 100000 | E15: 10 | F15: 100000 | G15: 10 | H15: 100000 | I15: 10 | J15: 100000
A16: Technologist | B16: 1000 | C16: 10 | D16: 10000 | E16: 10 | F16: 10000 | G16: 10 | H16: 10000 | I16: 10 | J16: 10000
A19: Capital Inputs | B19: Hourly Rate | C19: Hours per Year | D19: Amount | E19: Hours per Year | F19: Amount | G19: Hours per Year | H19: Amount | I19: Hours per Year | J19: Amount
A20: Truck | B20: 50 | C20: 100 | D20: 5000 | E20: 100 | F20: 5000 | G20: 100 | H20: 5000 | I20: 100 | J20: 5000
A21: Beryllium Melter | B21: 10 | C21: 100 | D21: 1000 | E21: 100 | F21: 1000 | G21: 100 | H21: 1000 | I21: 100 | J21: 1000
A22: Proton Smasher | B22: 5.714285714 | C22: 100 | D22: 571.43 | E22: 100 | F22: 571.43 | G22: 100 | H22: 571.43 | I22: 100 | J22: 571.43
A23: Minesweeper | B23: 1.25 | C23: 100 | D23: 125 | E23: 100 | F23: 125 | G23: 100 | H23: 125 | I23: 100 | J23: 125
A24: Processor | B24: 10 | C24: 100 | D24: 1000 | E24: 100 | F24: 1000 | G24: 100 | H24: 1000 | I24: 100 | J24: 1000
A26: Total: | D26: 137696 | F26: 137696 | H26: 137696 | J26: 137696
A29: Revenue and Profit Forecast
B30: Year 1 | C30: Year 2 | D30: Year 3 | E30: Year 4
A31: New Sales - Units | B31: 11 | C31: 11 | D31: 11 | E31: 11
A32: New Sales - Units | B32: 1 | C32: 111111 | D32: 111111 | E32: 111111
A33: New Sales Revenue | B33: =B31*B32 -> 11 | C33: =C31*C32 -> 1222221 | D33: =D31*D32 -> 1222221 | E33: =E31*E32 -> 1222221
A34: Cannibalized Sales - Units | B34: 1 | C34: 1 | D34: 1 | E34: 1
A35: Cannibalized Sales - Unit Price | B35: 1 | C35: 1 | D35: 1 | E35: 1
A36: Cannibalized Sales Amount | B36: =B34*B35 -> 1 | C36: =C34*C35 -> 1 | D36: =D34*D35 -> 1 | E36: =E34*E35 -> 1
A37: Unit Cost - Material & Labor | B37: 1 | C37: 1 | D37: 1 | E37: 1
A38: G&A - Overhead | B38: =B37*Accounting!$A$22 -> 0.3 | C38: =C37*Accounting!$A$22 -> 0.3 | D38: =D37*Accounting!$A$22 -> 0.3 | E38: =E37*Accounting!$A$22 -> 0.3
A39: Cost per Unit | B39: =B38+B37 -> 1.3 | C39: =C38+C37 -> 1.3 | D39: =D38+D37 -> 1.3 | E39: =E38+E37 -> 1.3
A40: Gross Profit | B40: =B33-B36-B31*B39 -> -4.3 | C40: =C33-C36-C31*C39 -> 1222205.7 | D40: =D33-D36-D31*D39 -> 1222205.7 | E40: =E33-E36-E31*E39 -> 1222205.7
A42: Net Present Value at 20% Discount Rate: | D42: 2280180.059
A43: Internal Rate of Return | D43: 7.876116227

Sheet RC-1000
A1: New Sales - Unit Price | B1: RC-1000
A2: Description: | B2: Core laser design
A3: Date of Project: | B3: Sept 18 2010
A5: Assumptions:
A6: G&A and O/H Rate | C6: =Accounting!A22 -> 0.3
A7: Discount Rate | C7: =Accounting!A19 -> 0.2
A11: Development Cost
C12: Year 0 | E12: Year 1
A13: Labor Costs | B13: Monthly Wage Rate | C13: Man Months | D13: Amount | E13: Man Months | F13: Amount
A14: Technician | B14: 1000 | C14: 10 | D14: 10000 | E14: 10 | F14: 10000
A17: Capital Inputs | B17: Hourly Rate | C17: Hours per Year | D17: Amount | E17: Hours per Year | F17: Amount
A18: Truck | B18: 50 | C18: 10 | D18: 500 | E18: 10 | F18: 500
A20: Total: | D20: 10500 | F20: 10500
A23: Revenue and Profit Forecast
B24: Year 1
A25: New Sales - Units | B25: 10
A26: New Sales - Unit Price | B26: 100000
A27: New Sales Revenue | B27: =B25*B26 -> 1000000
A28: Cannibalized Sales - Units | B28: 100
A29: Cannibalized Sales - Unit Price | B29: 0
A30: Cannibalized Sales Amount | B30: =B28*B29 -> 0
A31: Unit Cost - Material & Labor | B31: 1000
A32: G&A - Overhead | B32: =B31*Accounting!$A$22 -> 300
A33: Cost per Unit | B33: =B32+B31 -> 1300
A34: Gross Profit | B34: =B27-B30-B25*B33 -> 987000
A36: Net Present Value at 20% Discount Rate: | D36: 669375
A37: Internal Rate of Return | D37: 92

Sheet JH-9393
A1: Project: | B1: JH-9393
A2: Description: | B2: a;kdjf
A3: Date of Project: | B3: kjk
A5: Assumptions:
A6: G&A and O/H Rate | C6: =Accounting!A22 -> 0.3
A7: Discount Rate | C7: =Accounting!A19 -> 0.2
A11: Development Cost
C12: Year 0
A13: Labor Costs | B13: Monthly Wage Rate | C13: Man Months | D13: Amount
A14: Machinist | B14: 2000 | C14: 1
A17: Capital Inputs | B17: Hourly Rate | C17: Hours per Year | D17: Amount
A18: Processor | B18: 10 | C18: 1 | D18: 10
A20: Total: | D20: 10
A23: Revenue and Profit Forecast
B24: Year 1 | C24: Year 2 | D24: Year 3 | E24: Year 4 | F24: Year 5 | G24: Year 6 | H24: Year 7
A25: New Sales - Units | B25: 10 | C25: 10 | D25: 10 | E25: 10 | F25: 10 | G25: 10 | H25: 10
A26: New Sales - Unit Price | B26: 10000 | C26: 10000 | D26: 10000 | E26: 10000 | F26: 10000 | G26: 10000 | H26: 10000
A27: New Sales Revenue | B27: 100000 | C27: =C25*C26 -> 100000 | D27: 100000 | E27: 100000 | F27: 100000 | G27: 100000 | H27: 100000
A28: Cannibalized Sales - Units | B28: 1 | C28: 1 | D28: 1 | E28: 1 | F28: 1 | G28: 1 | H28: 1
A29: Cannibalized Sales - Unit Price | B29: 11111 | C29: 11111 | D29: 11111 | E29: 11111 | F29: 11111 | G29: 11111 | H29: 11111
A30: Cannibalized Sales Amount | B30: =B28*B29 -> 11111 | C30: 11111 | D30: 11111 | E30: 11111 | F30: 11111 | G30: 11111 | H30: 11111
A31: Unit Cost - Material & Labor | B31: 111 | C31: 111 | D31: 111 | E31: 111 | F31: 111 | G31: 111 | H31: 111
A32: G&A - Overhead | B32: =B31*Accounting!$A$22 -> 33.3 | C32: =C31*Accounting!$A$22 -> 33.3 | D32: =D31*Accounting!$A$22 -> 33.3 | E32: =E31*Accounting!$A$22 -> 33.3 | F32: =F31*Accounting!$A$22 -> 33.3 | G32: =G31*Accounting!$A$22 -> 33.3 | H32: =H31*Accounting!$A$22 -> 33.3
A33: Cost per Unit | B33: =B32+B31 -> 144.3 | C33: 144.3 | D33: 144.3 | E33: 144.3 | F33: 144.3 | G33: 144.3 | H33: 144.3
A34: Gross Profit | B34: =B27-B30-B25*B33 -> 87446 | C34: 87446 | D34: 87446 | E34: 87446 | F34: 87446 | G34: 87446 | H34: 87446
A36: Net Present Value at 20% Discount Rate: | D36: 262664.2762
A37: Internal Rate of Return | D37: 2.22

Sheet RT-2391
A1: Project: | B1: RT-2391
A2: Description: | B2: High Definition Laser Photography
A3: Date of Project: | B3: Sept 10, 2010
A5: Assumptions:
A6: G&A and O/H Rate | C6: =Accounting!A22 -> 0.3
A7: Discount Rate | C7: =Accounting!A19 -> 0.2
A11: Development Cost
C12: Year 0 | E12: Year 1 | G12: Year 2 | I12: Year 3
A13: Labor Costs | B13: Monthly Wage Rate | C13: Man Months | D13: Amount | E13: Man Months | F13: Amount | G13: Man Months | H13: Amount | I13: Man Months | J13: Amount
A14: Truck Driver | B14: 5000 | C14: 10 | D14: 50000 | E14: 10 | F14: 50000 | G14: 10 | H14: 50000 | I14: 10 | J14: 50000
A15: Machinist | B15: 2000 | C15: 1 | D15: 2000 | E15: 10 | F15: 20000 | G15: 8 | H15: 16000 | I15: 7 | J15: 14000
A16: Technician | B16: 1000 | C16: 1 | D16: 1000 | E16: 6 | F16: 6000 | G16: 4 | H16: 4000 | I16: 8 | J16: 8000
A17: Engineer | B17: 5000 | C17: 6 | D17: 30000 | E17: 4 | F17: 20000 | G17: 7 | H17: 35000 | I17: 5 | J17: 25000
A18: Technologist | B18: 1000 | C18: 5 | D18: 5000 | E18: 8 | F18: 8000 | G18: 4 | H18: 4000 | I18: 11 | J18: 11000
A21: Capital Inputs | B21: Hourly Rate | C21: Hours per Year | D21: Amount | E21: Hours per Year | F21: Amount | G21: Hours per Year | H21: Amount | I21: Hours per Year | J21: Amount
A22: Laser | B22: 11.11111111 | C22: 1 | D22: 11.1111 | E22: 3 | F22: 33.3333 | G22: 2 | H22: 22.2222 | I22: 2 | J22: 22.2222
A23: Truck | B23: 50 | C23: 200 | D23: 10000 | E23: 200 | F23: 10000 | G23: 200 | H23: 10000 | I23: 200 | J23: 10000
A24: Beryllium Melter | B24: 10 | C24: 200 | D24: 2000 | E24: 200 | F24: 2000 | G24: 200 | H24: 2000 | I24: 200 | J24: 2000
A25: Proton Smasher | B25: 5.714285714 | C25: 5 | D25: 28.5715 | E25: 50 | F25: 285.715 | G25: 50 | H25: 285.715 | I25: 50 | J25: 285.715
A26: Processor | B26: 10 | C26: 50 | D26: 500 | E26: 50 | F26: 500 | G26: 50 | H26: 500 | I26: 50 | J26: 500
A28: Total: | D28: 100540 | F28: 116819 | H28: 121808 | J28: 120808
A31: Revenue and Profit Forecast
B32: Year 1 | C32: Year 2 | D32: Year 3 | E32: Year 4 | F32: Year 5 | G32: Year 6 | H32: Year 7
A33: New Sales - Units | B33: 10 | C33: 10 | D33: 10 | E33: 10 | F33: 10 | G33: 10 | H33: 10
A34: New Sales - Unit Price | B34: 100000 | C34: 100000 | D34: 100000 | E34: 100000 | F34: 100000 | G34: 100000 | H34: 100000
A35: New Sales Revenue | B35: =B33*B34 -> 1000000 | C35: 1000000 | D35: 1000000 | E35: 1000000 | F35: 1000000 | G35: 1000000 | H35: 1000000
A36: Cannibalized Sales - Units | B36: 0 | C36: 0 | D36: 0 | E36: 1 | F36: 0 | G36: 1 | H36: 1
A37: Cannibalized Sales - Unit Price | B37: 0 | C37: 0 | D37: 0 | E37: 50000 | F37: 0 | G37: 50000 | H37: 50000
A38: Cannibalized Sales Amount | B38: =B36*B37 -> 0 | C38: 0 | D38: 0 | E38: 50000 | F38: 0 | G38: 50000 | H38: 50000
A39: Unit Cost - Material & Labor | B39: 5000 | C39: 5000 | D39: 5000 | E39: 5000 | F39: 5000 | G39: 5000 | H39: 5000
A40: G&A - Overhead | B40: =B39*Accounting!$A$22 -> 1500 | C40: =C39*Accounting!$A$22 -> 1500 | D40: =D39*Accounting!$A$22 -> 1500 | E40: =E39*Accounting!$A$22 -> 1500 | F40: =F39*Accounting!$A$22 -> 1500 | G40: =G39*Accounting!$A$22 -> 1500 | H40: =H39*Accounting!$A$22 -> 1500
A41: Cost per Unit | B41: =B40+B39 -> 6500 | C41: 6500 | D41: 6500 | E41: 6500 | F41: 6500 | G41: 6500 | H41: 6500
A42: Gross Profit | B42: =B35-B38-B33*B41 -> 935000 | C42: 935000 | D42: 935000 | E42: 885000 | F42: 935000 | G42: 885000 | H42: 885000
A44: Net Present Value at 20% Discount Rate: | D44: 2469242.976
A45: Internal Rate of Return | D45: 8.133538113

Sheet NA-1231
A1: Project: | B1: NA-1231
A2: Description: | B2: Triple Laser
A3: Date of Project: | B3: Sept 12 2010
A5: Assumptions:
A6: G&A and O/H Rate | C6: =Accounting!A22 -> 0.3
A7: Discount Rate | C7: =Accounting!A19 -> 0.2
A11: Development Cost
C12: Year 0 | E12: Year 1 | G12: Year 2
A13: Labor Costs | B13: Monthly Wage Rate | C13: Man Months | D13: Amount | E13: Man Months | F13: Amount | G13: Man Months | H13: Amount
A14: Machinist | B14: 2000 | C14: 10 | D14: 20000 | E14: 10 | F14: 20000 | G14: 10 | H14: 20000
A15: Technician | B15: 1000 | C15: 10 | D15: 10000 | E15: 10 | F15: 10000 | G15: 10 | H15: 10000
A16: Engineer | B16: 5000 | C16: 10 | D16: 50000 | E16: 10 | F16: 50000 | G16: 10 | H16: 50000
A19: Capital Inputs | B19: Hourly Rate | C19: Hours per Year | D19: Amount | E19: Hours per Year | F19: Amount | G19: Hours per Year | H19: Amount
A20: Laser | B20: 11.11111111 | C20: 10 | D20: 111.111 | E20: 10 | F20: 111.111 | G20: 10 | H20: 111.111
A21: Truck | B21: 50 | C21: 10 | D21: 500 | E21: 10 | F21: 500 | G21: 10 | H21: 500
A22: Beryllium Melter | B22: 10 | C22: 10 | D22: 100 | E22: 10 | F22: 100 | G22: 10 | H22: 100
A24: Total: | D24: 80711 | F24: 80711 | H24: 80711
A27: Revenue and Profit Forecast
B28: Year 1 | C28: Year 2
A29: New Sales - Units | C29: 11
A30: New Sales - Unit Price | B30: 1111111 | C30: 111111
A31: New Sales Revenue | B31: =B29*B30 -> 0 | C31: =C29*C30 -> 1222221
A32: Cannibalized Sales - Units | B32: 1 | C32: 1
A33: Cannibalized Sales - Unit Price | B33: 1 | C33: 1
A34: Cannibalized Sales Amount | B34: =B32*B33 -> 1 | C34: =C32*C33 -> 1
A35: Unit Cost - Material & Labor | B35: 1 | C35: 1
A36: G&A - Overhead | B36: =B35*Accounting!$A$22 -> 0.3 | C36: =C35*Accounting!$A$22 -> 0.3
A37: Cost per Unit | B37: =B36+B35 -> 1.3 | C37: =C36+C35 -> 1.3
A38: Gross Profit | B38: =B31-B34-B29*B37 -> -1 | C38: =C31-C34-C29*C37 -> 1222205.7
A40: Net Present Value at 20% Discount Rate: | D40: 537278.044
A41: Internal Rate of Return | D41: 2.293803782

Sheet HG-1231
A1: Project: | B1: HG-1231
A2: Description: | B2: Mercury Balance
A3: Date of Project: | B3: Sept 8 2010
A5: Assumptions:
A6: G&A and O/H Rate | C6: =Accounting!A22 -> 0.3
A7: Discount Rate | C7: =Accounting!A19 -> 0.2
A11: Development Cost
C12: Year 0 | E12: Year 1
A13: Labor Costs | B13: Monthly Wage Rate | C13: Man Months | D13: Amount | E13: Man Months | F13: Amount
A14: Truck Driver | B14: 5000 | C14: 10 | D14: 50000 | E14: 10 | F14: 50000
A15: Machinist | B15: 2000 | C15: 10 | D15: 20000 | E15: 10 | F15: 20000
A16: Technician | B16: 1000 | C16: 10 | D16: 10000 | E16: 10 | F16: 10000
A19: Capital Inputs | B19: Hourly Rate | C19: Hours per Year | D19: Amount | E19: Hours per Year | F19: Amount
A20: Laser | B20: 11.11111111
A21: Truck | B21: 50 | C21: 100 | D21: 5000 | E21: 100 | F21: 5000
A22: Beryllium Melter | B22: 10 | C22: 100 | D22: 1000 | E22: 100 | F22: 1000
A24: Total: | D24: 86000 | F24: 86000
A27: Revenue and Profit Forecast
B28: Year 1 | C28: Year 2 | D28: Year 3
A29: New Sales - Units | B29: 10 | C29: 10 | D29: 10
A30: New Sales - Unit Price | B30: 100000 | C30: 100000 | D30: 100000
A31: New Sales Revenue | B31: =B29*B30 -> 1000000 | C31: =C29*C30 -> 1000000 | D31: =D29*D30 -> 1000000
A32: Cannibalized Sales - Units | B32: 0 | C32: 0 | D32: 0
A33: Cannibalized Sales - Unit Price | B33: 0 | C33: 0 | D33: 0
A34: Cannibalized Sales Amount | B34: =B32*B33 -> 0 | C34: =C32*C33 -> 0 | D34: =D32*D33 -> 0
A35: Unit Cost - Material & Labor | B35: 0 | C35: 0 | D35: 0
A36: G&A - Overhead | B36: =B35*Accounting!$A$22 -> 0 | C36: =C35*Accounting!$A$22 -> 0 | D36: =D35*Accounting!$A$22 -> 0
A37: Cost per Unit | B37: =B36+B35 -> 0 | C37: =C36+C35 -> 0 | D37: =D36+D35 -> 0
A38: Gross Profit | B38: =B31-B34-B29*B37 -> 1000000 | C38: =C31-C34-C29*C37 -> 1000000 | D38: =D31-D34-D29*D37 -> 1000000
A40: Net Present Value at 20% Discount Rate: | D40: 1624012.346
A41: Internal Rate of Return | D41: 10.70608383

Sheet JD-1231
A1: Project: | B1: JD-1231
A2: Description: | B2: New Silver Reflector
A3: Date of Project: | B3: Sept 12 2010
A5: Assumptions:
A6: G&A and O/H Rate | C6: =Accounting!A22 -> 0.3
A7: Discount Rate | C7: =Accounting!A19 -> 0.2
A11: Development Cost
C12: Year 0 | E12: Year 1
A13: Labor Costs | B13: Monthly Wage Rate | C13: Man Months | D13: Amount | E13: Man Months | F13: Amount
A14: Machinist | B14: 2000 | C14: 10 | D14: 20000 | E14: 10 | F14: 20000
A15: Technologist | B15: 1000 | C15: 10 | D15: 10000 | E15: 10 | F15: 10000
A16: Manager | B16: 5000 | C16: 10 | D16: 50000 | E16: 10 | F16: 50000
A19: Capital Inputs | B19: Hourly Rate | C19: Hours per Year | D19: Amount | E19: Hours per Year | F19: Amount
A20: Beryllium Melter | B20: 10 | C20: 100 | D20: 1000 | E20: 100 | F20: 1000
A21: Truck | B21: 50 | C21: 100 | D21: 5000 | E21: 100 | F21: 5000
A23: Total: | D23: 86000 | F23: 86000
A26: Revenue and Profit Forecast
B27: Year 1 | C27: Year 2
A28: New Sales - Units | B28: 10 | C28: 10
A29: New Sales - Unit Price | B29: 111111 | C29: 111111
A30: New Sales Revenue | B30: =B28*B29 -> 1111110 | C30: =C28*C29 -> 1111110
A31: Cannibalized Sales - Units | B31: 1 | C31: 1
A32: Cannibalized Sales - Unit Price | B32: 100000 | C32: 100000
A33: Cannibalized Sales Amount | B33: =B31*B32 -> 100000 | C33: =C31*C32 -> 100000
A34: Unit Cost - Material & Labor | B34: 10000 | C34: 50000
A35: G&A - Overhead | B35: =B34*Accounting!$A$22 -> 3000 | C35: =C34*Accounting!$A$22 -> 15000
A36: Cost per Unit | B36: =B35+B34 -> 13000 | C36: =C35+C34 -> 65000
A37: Gross Profit | B37: =B30-B33-B28*B36 -> 881110 | C37: =C30-C33-C28*C36 -> 361110
A39: Net Present Value at 20% Discount Rate: | D39: 689468.75
A40: Internal Rate of Return | D40: 8.679273846

Sheet DL-10100
A1: Project: | B1: DL-10100
A2: Description: | B2: Nintendo
A3: Date of Project: | B3: Spet 10 2010
A5: Assumptions:
A6: G&A and O/H Rate | C6: =Accounting!A22 -> 0.3
A7: Discount Rate | C7: =Accounting!A19 -> 0.2
A11: Development Cost
C12: Year 0 | E12: Year 1 | G12: Year 2 | I12: Year 3
A13: Labor Costs | B13: Monthly Wage Rate | C13: Man Months | D13: Amount | E13: Man Months | F13: Amount | G13: Man Months | H13: Amount | I13: Man Months | J13: Amount
A14: Truck Driver | B14: 5000 | C14: 10 | D14: 50000 | E14: 10 | F14: 50000 | G14: 10 | H14: 50000 | I14: 10 | J14: 50000
A15: Machinist | B15: 2000 | C15: 10 | D15: 20000 | E15: 10 | F15: 20000 | G15: 10 | H15: 20000 | I15: 10 | J15: 20000
A16: Technician | B16: 1000 | C16: 10 | D16: 10000 | E16: 10 | F16: 10000 | G16: 10 | H16: 10000 | I16: 10 | J16: 10000
A19: Capital Inputs | B19: Hourly Rate | C19: Hours per Year | D19: Amount | E19: Hours per Year | F19: Amount | G19: Hours per Year | H19: Amount | I19: Hours per Year | J19: Amount
A20: Truck | B20: 50 | C20: 100 | D20: 5000 | E20: 100 | F20: 5000 | G20: 100 | H20: 5000 | I20: 100 | J20: 5000
A21: Proton Smasher | B21: 5.714285714 | C21: 100 | D21: 571.43 | E21: 100 | F21: 571.43 | G21: 100 | H21: 571.43 | I21: 100 | J21: 571.43
A23: Total: | D23: 85571 | F23: 85571 | H23: 85571 | J23: 85571
A26: Revenue and Profit Forecast
B27: Year 1 | C27: Year 2
A28: New Sales - Units | B28: 10 | C28: 10
A29: New Sales - Unit Price | B29: 100000 | C29: 100000
A30: New Sales Revenue | B30: =B28*B29 -> 1000000 | C30: =C28*C29 -> 1000000
A31: Cannibalized Sales - Units | B31: 1 | C31: 1
A32: Cannibalized Sales - Unit Price | B32: 10000 | C32: 10000
A33: Cannibalized Sales Amount | B33: =B31*B32 -> 10000 | C33: =C31*C32 -> 10000
A34: Unit Cost - Material & Labor | B34: 1000 | C34: 1000
A35: G&A - Overhead | B35: =B34*Accounting!$A$22 -> 300 | C35: =C34*Accounting!$A$22 -> 300
A36: Cost per Unit | B36: =B35+B34 -> 1300 | C36: =C35+C34 -> 1300
A37: Gross Profit | B37: =B30-B33-B28*B36 -> 977000 | C37: =C30-C33-C28*C36 -> 977000
A39: Net Present Value at 20% Discount Rate: | D39: 1022345.135
A40: Internal Rate of Return | D40: 10.32915159

Sheet JJ-1000
A1: Project: | B1: JJ-1000
A2: Description: | B2: w
A3: Date of Project: | B3: adf
A5: Assumptions:
A6: G&A and O/H Rate | C6: =Accounting!A22 -> 0.3
A7: Discount Rate | C7: =Accounting!A19 -> 0.2
A11: Development Cost
C12: Year 0 | E12: Year 1 | G12: Year 2 | I12: Year 3
A13: Labor Costs | B13: Monthly Wage Rate | C13: Man Months | D13: Amount | E13: Man Months | F13: Amount | G13: Man Months | H13: Amount | I13: Man Months | J13: Amount
A14: Truck Driver | B14: 5000 | C14: 10 | D14: 50000 | E14: 10 | F14: 50000 | G14: 10 | H14: 50000 | I14: 10 | J14: 50000
A15: Machinist | B15: 2000 | C15: 10 | D15: 20000 | E15: 10 | F15: 20000 | G15: 10 | H15: 20000 | I15: 10 | J15: 20000
A18: Capital Inputs | B18: Hourly Rate | C18: Hours per Year | D18: Amount | E18: Hours per Year | F18: Amount | G18: Hours per Year | H18: Amount | I18: Hours per Year | J18: Amount
A19: Laser | B19: 11.11111111 | C19: 100 | D19: 1111.11 | E19: 100 | F19: 1111.11 | G19: 100 | H19: 1111.11 | I19: 100 | J19: 1111.11
A20: Truck | B20: 50 | C20: 100 | D20: 5000 | E20: 100 | F20: 5000 | G20: 100 | H20: 5000 | I20: 100 | J20: 5000
A22: Total: | D22: 76111 | F22: 76111 | H22: 76111 | J22: 76111
A25: Revenue and Profit Forecast
B26: Year 1 | C26: Year 2
A27: New Sales - Units | B27: 10 | C27: 10
A28: New Sales - Unit Price | B28: 100000 | C28: 100000
A29: New Sales Revenue | B29: =B27*B28 -> 1000000 | C29: =C27*C28 -> 1000000
A30: Cannibalized Sales - Units | B30: 1 | C30: 1
A31: Cannibalized Sales - Unit Price | B31: 10000 | C31: 10000
A32: Cannibalized Sales Amount | B32: =B30*B31 -> 10000 | C32: =C30*C31 -> 10000
A33: Unit Cost - Material & Labor | B33: 1000 | C33: 1000
A34: G&A - Overhead | B34: =B33*Accounting!$A$22 -> 300 | C34: =C33*Accounting!$A$22 -> 300
A35: Cost per Unit | B35: =B34+B33 -> 1300 | C35: =C34+C33 -> 1300
A36: Gross Profit | B36: =B29-B32-B27*B35 -> 977000 | C36: =C29-C32-C27*C35 -> 977000
A38: Net Present Value at 20% Discount Rate: | D38: 1046834.564
A39: Internal Rate of Return | D39: 11.75813372

Sheet Potential Project Portfolio
A1: Potential Project Portfolio
A2: Potential Project | B2: Camera Type | C2: Market Drivers | D2: Target Customers | E2: Target Sales Price | F2: Units per Year Average | G2: NPV | H2: IRR | I2: Project Status
A3: BV-1231 | F3: 1 | G3: -16435.2083 | H3: 0.16
A4: KJ-1212 | F4: 11 | G4: 2280180.059 | H4: 7.876116227
A5: RC-1000 | F5: 10 | G5: 669375 | H5: 92
A6: JH-9393 | F6: 10 | G6: 262664.2762 | H6: 2.22
A7: RT-2391 | F7: 10 | G7: 2469242.976 | H7: 8.133538113
A8: NA-1231 | F8: 5.5 | G8: 537278.044 | H8: 2.293803782
A9: HG-1231 | F9: 10 | G9: 1624012.346 | H9: 10.70608383
A10: JD-1231 | F10: 10 | G10: 689468.75 | H10: 8.679273846
A11: DL-10100 | F11: 10 | G11: 1022345.135 | H11: 10.32915159
A12: JJ-1000 | F12: 10 | G12: 1046834.564 | H12: 11.75813372
